[Event "Titled Tuesday Blitz May 03 Late 2022"]
[White "Avalos Parra, Joao"]
[Black "Lehtosaari, Mauri"]
[WhiteFideId "3402541"]
[BlackFideId "501999"]
[WhiteElo "2173"]
[BlackElo "2523"]
[Result "1-0"]
[Round "09"]
[TimeControl "180+1"]
[Date "2022.05.03"]
[WhiteClock "0:00:06"]
[BlackClock "0:00:21"]

1. d4 {[%clk 0:03:00]}  d5 {[%clk 0:02:59]} 2. c4 {[%clk 0:02:59]}  c6 {[%clk 0:03:00]} 3. Nf3 {[%clk 0:02:59]}  Nf6 {[%clk 0:03:00]} 4. e3 {[%clk 0:03:00]}  Bg4 {[%clk 0:02:59]} 5. Nc3 {[%clk 0:02:59]}  e6 {[%clk 0:02:59]} 6. Be2 {[%clk 0:02:59]}  Nbd7 {[%clk 0:02:56]} 7. O-O {[%clk 0:03:00]}  Bd6 {[%clk 0:02:56]} 8. cxd5 {[%clk 0:02:59]}  exd5 {[%clk 0:02:56]} 9. Qb3 {[%clk 0:02:56]}  Qb6 {[%clk 0:02:55]} 10. Qc2 {[%clk 0:02:55]}  O-O {[%clk 0:02:54]} 11. h3 {[%clk 0:02:55]}  Bh5 {[%clk 0:02:54]} 12. Re1 {[%clk 0:02:55]}  Rae8 {[%clk 0:02:50]} 13. b3 {[%clk 0:02:51]}  Ne4 {[%clk 0:02:44]} 14. Nxe4 {[%clk 0:02:33]}  dxe4 {[%clk 0:02:43]} 15. Nd2 {[%clk 0:02:31]}  Bxe2 {[%clk 0:02:42]} 16. Rxe2 {[%clk 0:02:32]}  f5 {[%clk 0:02:15]} 17. Nc4 {[%clk 0:02:29]}  Qc7 {[%clk 0:02:15]} 18. Nxd6 {[%clk 0:02:29]}  Qxd6 {[%clk 0:02:16]} 19. Bb2 {[%clk 0:02:29]}  Nf6 {[%clk 0:02:10]} 20. a4 {[%clk 0:02:20]}  Rf7 {[%clk 0:02:09]} 21. a5 {[%clk 0:02:20]}  a6 {[%clk 0:02:09]} 22. Ba3 {[%clk 0:02:17]}  Qd7 {[%clk 0:02:07]} 23. Bc5 {[%clk 0:02:12]}  Nd5 {[%clk 0:02:05]} 24. Rf1 {[%clk 0:02:05]}  Qe6 {[%clk 0:02:00]} 25. b4 {[%clk 0:02:01]}  g5 {[%clk 0:01:58]} 26. Qd2 {[%clk 0:01:40]}  h6 {[%clk 0:01:56]} 27. Ree1 {[%clk 0:01:30]}  Kh7 {[%clk 0:01:52]} 28. Qe2 {[%clk 0:01:30]}  Rg8 {[%clk 0:01:50]} 29. Kh1 {[%clk 0:01:30]}  Qg6 {[%clk 0:01:43]} 30. f3 {[%clk 0:01:29]}  Re8 {[%clk 0:01:41]} 31. fxe4 {[%clk 0:01:22]}  Rxe4 {[%clk 0:01:38]} 32. Rf3 {[%clk 0:01:21]}  Rf6 {[%clk 0:01:18]} 33. Qf2 {[%clk 0:01:19]}  g4 {[%clk 0:01:09]} 34. hxg4 {[%clk 0:01:12]}  fxg4 {[%clk 0:01:09]} 35. Rxf6 {[%clk 0:01:11]}  Nxf6 {[%clk 0:01:10]} 36. Qg3 {[%clk 0:01:01]}  Qg7 {[%clk 0:01:00]} 37. Rf1 {[%clk 0:00:56]}  Nd5 {[%clk 0:00:58]} 38. Bf8 {[%clk 0:00:52]}  Rxe3 {[%clk 0:00:52]} 39. Bxg7 {[%clk 0:00:31]}  Rxg3 {[%clk 0:00:51]} 40. Be5 {[%clk 0:00:32]}  Rb3 {[%clk 0:00:48]} 41. Rf7+ {[%clk 0:00:32]}  Kg6 {[%clk 0:00:49]} 42. Rxb7 {[%clk 0:00:32]}  Rxb4 {[%clk 0:00:48]} 43. Ra7 {[%clk 0:00:28]}  g3 {[%clk 0:00:46]} 44. Bxg3 {[%clk 0:00:26]}  Rxd4 {[%clk 0:00:45]} 45. Rxa6 {[%clk 0:00:26]}  Rc4 {[%clk 0:00:45]} 46. Ra8 {[%clk 0:00:24]}  Ra4 {[%clk 0:00:43]} 47. a6 {[%clk 0:00:21]}  Ne3 {[%clk 0:00:42]} 48. a7 {[%clk 0:00:18]}  Ra1+ {[%clk 0:00:41]} 49. Kh2 {[%clk 0:00:17]}  Nf1+ {[%clk 0:00:41]} 50. Kh3 {[%clk 0:00:18]}  Nxg3 {[%clk 0:00:40]} 51. Rg8+ {[%clk 0:00:18]}  Kh7 {[%clk 0:00:40]} 52. a8=Q {[%clk 0:00:18]}  Rxa8 {[%clk 0:00:40]} 53. Rxa8 {[%clk 0:00:19]}  Nh5 {[%clk 0:00:40]} 54. Rc8 {[%clk 0:00:18]}  Nf4+ {[%clk 0:00:40]} 55. Kh2 {[%clk 0:00:18]}  Kg6 {[%clk 0:00:39]} 56. Rxc6+ {[%clk 0:00:18]}  Kg5 {[%clk 0:00:39]} 57. Ra6 {[%clk 0:00:19]}  h5 {[%clk 0:00:39]} 58. Ra5+ {[%clk 0:00:18]}  Kg4 {[%clk 0:00:39]} 59. g3 {[%clk 0:00:18]}  Ne2 {[%clk 0:00:38]} 60. Ra4+ {[%clk 0:00:17]}  Kg5 {[%clk 0:00:38]} 61. Kh3 {[%clk 0:00:15]}  Ng1+ {[%clk 0:00:37]} 62. Kg2 {[%clk 0:00:16]}  Ne2 {[%clk 0:00:38]} 63. Ra5+ {[%clk 0:00:15]}  Kg4 {[%clk 0:00:38]} 64. Ra4+ {[%clk 0:00:15]}  Kg5 {[%clk 0:00:38]} 65. Re4 {[%clk 0:00:15]}  Nc3 {[%clk 0:00:37]} 66. Re8 {[%clk 0:00:16]}  Nd5 {[%clk 0:00:37]} 67. Kf3 {[%clk 0:00:15]}  Nf6 {[%clk 0:00:33]} 68. Re5+ {[%clk 0:00:15]}  Kg6 {[%clk 0:00:33]} 69. Ra5 {[%clk 0:00:16]}  Ng4 {[%clk 0:00:32]} 70. Kf4 {[%clk 0:00:16]}  Nf6 {[%clk 0:00:30]} 71. Ra6 {[%clk 0:00:16]}  Kg7 {[%clk 0:00:31]} 72. Kg5 {[%clk 0:00:15]}  Ne4+ {[%clk 0:00:31]} 73. Kh4 {[%clk 0:00:15]}  Kh7 {[%clk 0:00:30]} 74. Re6 {[%clk 0:00:14]}  Nc5 {[%clk 0:00:27]} 75. Rc6 {[%clk 0:00:13]}  Ne4 {[%clk 0:00:27]} 76. Rc7+ {[%clk 0:00:14]}  Kg6 {[%clk 0:00:27]} 77. Rc6+ {[%clk 0:00:14]}  Kf5 {[%clk 0:00:26]} 78. Ra6 {[%clk 0:00:13]}  Ke5 {[%clk 0:00:25]} 79. Ra5+ {[%clk 0:00:14]}  Kf6 {[%clk 0:00:25]} 80. Rxh5 {[%clk 0:00:14]}  Kg6 {[%clk 0:00:23]} 81. Ra5 {[%clk 0:00:14]}  Nf6 {[%clk 0:00:22]} 82. Ra6 {[%clk 0:00:13]}  Kf5 {[%clk 0:00:23]} 83. Rxf6+ {[%clk 0:00:12]}  Kxf6 {[%clk 0:00:23]} 84. Kh5 {[%clk 0:00:12]}  Kg7 {[%clk 0:00:20]} 85. Kg5 {[%clk 0:00:13]}  Kf7 {[%clk 0:00:19]} 86. Kh6 {[%clk 0:00:13]}  Kg8 {[%clk 0:00:19]} 87. Kg6 {[%clk 0:00:13]}  Kh8 {[%clk 0:00:18]} 88. Kf7 {[%clk 0:00:12]}  Kh7 {[%clk 0:00:19]} 89. g4 {[%clk 0:00:13]}  Kh6 {[%clk 0:00:20]} 90. Kf6 {[%clk 0:00:12]}  Kh7 {[%clk 0:00:20]} 91. g5 {[%clk 0:00:11]}  Kh8 {[%clk 0:00:20]} 92. g6 {[%clk 0:00:06]}  Kg8 {[%clk 0:00:20]} 93. g7 {[%clk 0:00:07]}  Kh7 {[%clk 0:00:19]} 94. Kf7 {[%clk 0:00:07]}  Kh6 {[%clk 0:00:20]} 95. g8=Q {[%clk 0:00:07]}  Kh5 {[%clk 0:00:20]} 96. Kf6 {[%clk 0:00:07]}  Kh6 {[%clk 0:00:21]} 97. Qg6# {[%clk 0:00:06]} 1-0


[Site "https://www.chess.com"]

[Event "Titled Tuesday Blitz May 03 Late 2022"]
[White "Bifulco, Michel"]
[Black "Romanchuk, Viktor"]
[WhiteFideId "828580"]
[BlackFideId "14109271"]
[WhiteElo "2165"]
[BlackElo "2242"]
[Result "1/2-1/2"]
[Round "09"]
[TimeControl "180+1"]
[Date "2022.05.03"]
[WhiteClock "0:00:17"]
[BlackClock "0:00:50"]

1. d4 {[%clk 0:03:00]}  d5 {[%clk 0:02:59]} 2. Nc3 {[%clk 0:03:01]}  e6 {[%clk 0:02:59]} 3. Bf4 {[%clk 0:03:00]}  Bd6 {[%clk 0:02:59]} 4. e3 {[%clk 0:02:59]}  Nf6 {[%clk 0:02:57]} 5. Nf3 {[%clk 0:02:58]}  O-O {[%clk 0:02:57]} 6. Bd3 {[%clk 0:02:56]}  b6 {[%clk 0:02:57]} 7. Ne5 {[%clk 0:02:56]}  Ba6 {[%clk 0:02:55]} 8. Bxa6 {[%clk 0:02:52]}  Nxa6 {[%clk 0:02:54]} 9. g4 {[%clk 0:02:53]}  Ne4 {[%clk 0:02:39]} 10. Nxe4 {[%clk 0:02:44]}  dxe4 {[%clk 0:02:40]} 11. c3 {[%clk 0:02:40]}  c5 {[%clk 0:02:30]} 12. Qc2 {[%clk 0:02:38]}  cxd4 {[%clk 0:02:29]} 13. exd4 {[%clk 0:02:38]}  Bxe5 {[%clk 0:02:24]} 14. Bxe5 {[%clk 0:02:37]}  f6 {[%clk 0:02:17]} 15. Bf4 {[%clk 0:02:27]}  Qd5 {[%clk 0:02:17]} 16. O-O-O {[%clk 0:02:09]}  Rac8 {[%clk 0:02:11]} 17. Kb1 {[%clk 0:02:06]}  Nb4 {[%clk 0:02:05]} 18. Qb3 {[%clk 0:01:57]}  Nd3 {[%clk 0:02:04]} 19. Be3 {[%clk 0:01:50]}  Qxb3 {[%clk 0:02:01]} 20. axb3 {[%clk 0:01:50]}  e5 {[%clk 0:02:02]} 21. dxe5 {[%clk 0:01:40]}  Nxe5 {[%clk 0:02:01]} 22. Rd4 {[%clk 0:01:33]}  Nxg4 {[%clk 0:02:00]} 23. Rxe4 {[%clk 0:01:30]}  Nxe3 {[%clk 0:01:59]} 24. Rxe3 {[%clk 0:01:30]}  Rfe8 {[%clk 0:01:59]} 25. Rhe1 {[%clk 0:01:30]}  Kf7 {[%clk 0:02:00]} 26. Kc2 {[%clk 0:01:30]}  Rxe3 {[%clk 0:01:59]} 27. Rxe3 {[%clk 0:01:30]}  Re8 {[%clk 0:02:00]} 28. Rxe8 {[%clk 0:01:27]}  Kxe8 {[%clk 0:02:01]} 29. c4 {[%clk 0:01:23]}  Kd7 {[%clk 0:01:58]} 30. b4 {[%clk 0:01:23]}  Kd6 {[%clk 0:01:58]} 31. Kd3 {[%clk 0:01:23]}  Ke5 {[%clk 0:01:58]} 32. Ke3 {[%clk 0:01:22]}  g5 {[%clk 0:01:58]} 33. h3 {[%clk 0:01:08]}  f5 {[%clk 0:01:54]} 34. f3 {[%clk 0:01:01]}  h6 {[%clk 0:01:44]} 35. b3 {[%clk 0:01:00]}  a6 {[%clk 0:01:36]} 36. Kd3 {[%clk 0:00:42]}  h5 {[%clk 0:01:34]} 37. Ke3 {[%clk 0:00:33]}  g4 {[%clk 0:01:34]} 38. fxg4 {[%clk 0:00:32]}  fxg4 {[%clk 0:01:33]} 39. hxg4 {[%clk 0:00:33]}  hxg4 {[%clk 0:01:33]} 40. Kf2 {[%clk 0:00:22]}  Kf4 {[%clk 0:01:07]} 41. Kg2 {[%clk 0:00:22]}  Kg5 {[%clk 0:01:01]} 42. Kg3 {[%clk 0:00:23]}  Kf5 {[%clk 0:01:01]} 43. Kg2 {[%clk 0:00:17]}  Kf4 {[%clk 0:01:01]} 44. Kf2 {[%clk 0:00:18]}  Ke4 {[%clk 0:01:00]} 45. Kg3 {[%clk 0:00:17]}  Kf5 {[%clk 0:01:00]} 46. Kg2 {[%clk 0:00:16]}  Kf4 {[%clk 0:01:00]} 47. Kf2 {[%clk 0:00:17]}  Ke4 {[%clk 0:01:00]} 48. Kg3 {[%clk 0:00:17]}  Kf5 {[%clk 0:00:50]} 1/2-1/2


[Site "https://www.chess.com"]

[Event "Titled Tuesday Blitz May 03 Late 2022"]
[White "Bortnyk, Olexandr"]
[Black "Zhigalko, Sergei"]
[WhiteFideId "14120828"]
[BlackFideId "13502956"]
[WhiteElo "2723"]
[BlackElo "2662"]
[Result "0-1"]
[Round "09"]
[TimeControl "180+1"]
[Date "2022.05.03"]
[WhiteClock "0:00:07"]
[BlackClock "0:00:09"]

1. e4 {[%clk 0:02:25]}  c5 {[%clk 0:02:57]} 2. Be2 {[%clk 0:02:24]}  Nc6 {[%clk 0:02:55]} 3. f4 {[%clk 0:02:23]}  g6 {[%clk 0:02:55]} 4. Nf3 {[%clk 0:02:23]}  Bg7 {[%clk 0:02:56]} 5. d3 {[%clk 0:02:23]}  Nf6 {[%clk 0:02:55]} 6. O-O {[%clk 0:02:21]}  O-O {[%clk 0:02:55]} 7. c3 {[%clk 0:02:18]}  d6 {[%clk 0:02:53]} 8. Kh1 {[%clk 0:02:15]}  Rb8 {[%clk 0:02:53]} 9. Be3 {[%clk 0:02:14]}  b5 {[%clk 0:02:52]} 10. Nbd2 {[%clk 0:02:12]}  b4 {[%clk 0:02:36]} 11. d4 {[%clk 0:02:12]}  bxc3 {[%clk 0:02:26]} 12. bxc3 {[%clk 0:02:13]}  cxd4 {[%clk 0:02:26]} 13. cxd4 {[%clk 0:02:14]}  d5 {[%clk 0:02:12]} 14. e5 {[%clk 0:02:13]}  Ng4 {[%clk 0:02:13]} 15. Bg1 {[%clk 0:02:12]}  h5 {[%clk 0:02:08]} 16. Nb3 {[%clk 0:02:05]}  Bf5 {[%clk 0:01:57]} 17. Nh4 {[%clk 0:01:59]}  Be4 {[%clk 0:01:00]} 18. Bxg4 {[%clk 0:01:54]}  hxg4 {[%clk 0:00:59]} 19. Qxg4 {[%clk 0:01:55]}  e6 {[%clk 0:00:52]} 20. Nf3 {[%clk 0:01:42]}  Nb4 {[%clk 0:00:43]} 21. Ng5 {[%clk 0:01:40]}  Bh6 {[%clk 0:00:39]} 22. Nxe4 {[%clk 0:01:35]}  dxe4 {[%clk 0:00:39]} 23. Nc5 {[%clk 0:01:34]}  Qd5 {[%clk 0:00:35]} 24. Rae1 {[%clk 0:01:31]}  Nd3 {[%clk 0:00:27]} 25. Nxe4 {[%clk 0:01:28]}  Bg7 {[%clk 0:00:28]} 26. Re3 {[%clk 0:01:23]}  Rb2 {[%clk 0:00:23]} 27. Nf6+ {[%clk 0:00:58]}  Bxf6 {[%clk 0:00:21]} 28. exf6 {[%clk 0:00:59]}  Qxd4 {[%clk 0:00:16]} 29. Qh3 {[%clk 0:00:23]}  Nxf4 {[%clk 0:00:01]} 30. Qh6 {[%clk 0:00:12]}  Nh5 {[%clk 0:00:02]} 31. Qxh5 {[%clk 0:00:07]}  gxh5 {[%clk 0:00:01]} 32. Rg3+ {[%clk 0:00:05]}  Qg4 {[%clk 0:00:02]} 33. Rxg4+ {[%clk 0:00:05]}  hxg4 {[%clk 0:00:03]} 34. Rf4 {[%clk 0:00:05]}  Rc8 {[%clk 0:00:03]} 35. Rxg4+ {[%clk 0:00:06]}  Kf8 {[%clk 0:00:03]} 36. h4 {[%clk 0:00:02]}  Rxa2 {[%clk 0:00:03]} 37. Kh2 {[%clk 0:00:02]}  a5 {[%clk 0:00:03]} 38. h5 {[%clk 0:00:02]}  Rac2 {[%clk 0:00:03]} 39. h6 {[%clk 0:00:02]}  R8c5 {[%clk 0:00:01]} 40. Bxc5+ {[%clk 0:00:02]}  Rxc5 {[%clk 0:00:02]} 41. Rh4 {[%clk 0:00:02]}  Kg8 {[%clk 0:00:02]} 42. h7+ {[%clk 0:00:02]}  Kh8 {[%clk 0:00:03]} 43. g4 {[%clk 0:00:02]}  Rg5 {[%clk 0:00:03]} 44. Kg3 {[%clk 0:00:03]}  Rg6 {[%clk 0:00:04]} 45. Rh5 {[%clk 0:00:03]}  Rxf6 {[%clk 0:00:04]} 46. Rxa5 {[%clk 0:00:03]}  Kxh7 {[%clk 0:00:04]} 47. Ra7 {[%clk 0:00:04]}  Kg7 {[%clk 0:00:05]} 48. Ra8 {[%clk 0:00:03]}  Rg6 {[%clk 0:00:05]} 49. Kf4 {[%clk 0:00:03]}  Rf6+ {[%clk 0:00:06]} 50. Ke4 {[%clk 0:00:04]}  Rf1 {[%clk 0:00:06]} 51. Ra7 {[%clk 0:00:04]}  Kg6 {[%clk 0:00:07]} 52. Ra8 {[%clk 0:00:03]}  Kg5 {[%clk 0:00:07]} 53. Rg8+ {[%clk 0:00:03]}  Kf6 {[%clk 0:00:07]} 54. g5+ {[%clk 0:00:03]}  Ke7 {[%clk 0:00:07]} 55. g6 {[%clk 0:00:02]}  f5+ {[%clk 0:00:06]} 56. Ke5 {[%clk 0:00:03]}  Re1+ {[%clk 0:00:06]} 57. Kf4 {[%clk 0:00:03]}  Kf6 {[%clk 0:00:06]} 58. Kf3 {[%clk 0:00:03]}  Re4 {[%clk 0:00:06]} 59. Kg3 {[%clk 0:00:02]}  Rg4+ {[%clk 0:00:06]} 60. Kf3 {[%clk 0:00:03]}  Rxg6 {[%clk 0:00:07]} 61. Rf8+ {[%clk 0:00:03]}  Ke5 {[%clk 0:00:07]} 62. Ra8 {[%clk 0:00:04]}  Rg4 {[%clk 0:00:07]} 63. Ra5+ {[%clk 0:00:04]}  Kf6 {[%clk 0:00:08]} 64. Ra8 {[%clk 0:00:05]}  Rc4 {[%clk 0:00:08]} 65. Rf8+ {[%clk 0:00:05]}  Ke5 {[%clk 0:00:08]} 66. Ra8 {[%clk 0:00:06]}  Rc3+ {[%clk 0:00:09]} 67. Ke2 {[%clk 0:00:06]}  Kf4 {[%clk 0:00:08]} 68. Ra4+ {[%clk 0:00:07]}  Kg5 {[%clk 0:00:08]} 69. Kf2 {[%clk 0:00:07]}  e5 {[%clk 0:00:08]} 70. Ra5 {[%clk 0:00:07]}  e4 {[%clk 0:00:08]} 71. Ke2 {[%clk 0:00:06]}  Kf4 {[%clk 0:00:09]} 72. Kd2 {[%clk 0:00:06]}  Rd3+ {[%clk 0:00:09]} 73. Ke2 {[%clk 0:00:07]}  Rh3 {[%clk 0:00:10]} 74. Kf2 {[%clk 0:00:07]}  Rh2+ {[%clk 0:00:10]} 75. Kg1 {[%clk 0:00:08]}  Rb2 {[%clk 0:00:11]} 76. Rc5 {[%clk 0:00:07]}  e3 {[%clk 0:00:11]} 77. Rb5 {[%clk 0:00:07]}  Rxb5 {[%clk 0:00:09]} 0-1


[Site "https://www.chess.com"]

[Event "Titled Tuesday Blitz May 03 Late 2022"]
[White "Dimakiling, Oliver"]
[Black "Golubev, Mikhail"]
[WhiteFideId "5202248"]
[BlackFideId "14100983"]
[WhiteElo "2426"]
[BlackElo "2374"]
[Result "1-0"]
[Round "09"]
[TimeControl "180+1"]
[Date "2022.05.03"]
[WhiteClock "0:01:08"]
[BlackClock "0:00:05"]

1. c4 {[%clk 0:03:00]}  g6 {[%clk 0:02:58]} 2. Nc3 {[%clk 0:03:00]}  Bg7 {[%clk 0:02:59]} 3. d4 {[%clk 0:02:59]}  d6 {[%clk 0:02:59]} 4. e4 {[%clk 0:02:59]}  Nf6 {[%clk 0:02:59]} 5. f3 {[%clk 0:02:59]}  O-O {[%clk 0:02:59]} 6. Be3 {[%clk 0:02:58]}  a6 {[%clk 0:02:57]} 7. Qd2 {[%clk 0:02:58]}  Nbd7 {[%clk 0:02:57]} 8. Bh6 {[%clk 0:02:57]}  Bxh6 {[%clk 0:02:39]} 9. Qxh6 {[%clk 0:02:56]}  c5 {[%clk 0:02:39]} 10. Nge2 {[%clk 0:02:52]}  b5 {[%clk 0:02:30]} 11. dxc5 {[%clk 0:02:47]}  b4 {[%clk 0:02:24]} 12. Nd5 {[%clk 0:02:40]}  e6 {[%clk 0:01:53]} 13. Nxf6+ {[%clk 0:02:28]}  Qxf6 {[%clk 0:01:53]} 14. cxd6 {[%clk 0:02:28]}  Qxb2 {[%clk 0:01:47]} 15. Qc1 {[%clk 0:02:26]}  Qxc1+ {[%clk 0:01:42]} 16. Rxc1 {[%clk 0:02:25]}  Nc5 {[%clk 0:01:42]} 17. Nf4 {[%clk 0:02:19]}  Bd7 {[%clk 0:00:53]} 18. Nd3 {[%clk 0:02:18]}  Rfc8 {[%clk 0:00:52]} 19. e5 {[%clk 0:02:15]}  a5 {[%clk 0:00:51]} 20. Kd2 {[%clk 0:02:10]}  b3 {[%clk 0:00:34]} 21. Nxc5 {[%clk 0:02:05]}  Rxc5 {[%clk 0:00:35]} 22. axb3 {[%clk 0:02:06]}  Rxe5 {[%clk 0:00:35]} 23. Kc3 {[%clk 0:01:33]}  a4 {[%clk 0:00:30]} 24. b4 {[%clk 0:01:31]}  a3 {[%clk 0:00:30]} 25. Bd3 {[%clk 0:01:24]}  a2 {[%clk 0:00:29]} 26. Kb2 {[%clk 0:01:23]}  Ra4 {[%clk 0:00:21]} 27. b5 {[%clk 0:01:21]}  Rc5 {[%clk 0:00:10]} 28. Rhd1 {[%clk 0:01:19]}  Rb4+ {[%clk 0:00:07]} 29. Ka3 {[%clk 0:01:11]}  Rb1 {[%clk 0:00:05]} 30. Rxb1 {[%clk 0:01:07]}  axb1=Q {[%clk 0:00:05]} 31. Rxb1 {[%clk 0:01:08]} 1-0


[Site "https://www.chess.com"]

[Event "Titled Tuesday Blitz May 03 Late 2022"]
[White "Donchenko, Anatoly"]
[Black "Prieto Aranguren, Alain"]
[WhiteFideId "4106091"]
[BlackFideId "2268906"]
[WhiteElo "2339"]
[BlackElo "2235"]
[Result "0-1"]
[Round "09"]
[TimeControl "180+1"]
[Date "2022.05.03"]
[WhiteClock "0:00:58"]
[BlackClock "0:00:08"]

1. Nf3 {[%clk 0:03:00]}  f5 {[%clk 0:02:49]} 2. d4 {[%clk 0:02:59]}  g6 {[%clk 0:02:45]} 3. g3 {[%clk 0:02:59]}  Bg7 {[%clk 0:02:38]} 4. b4 {[%clk 0:02:59]}  a5 {[%clk 0:02:37]} 5. b5 {[%clk 0:02:58]}  c5 {[%clk 0:02:27]} 6. bxc6 {[%clk 0:02:56]}  Nxc6 {[%clk 0:02:22]} 7. Bb2 {[%clk 0:02:48]}  Qb6 {[%clk 0:02:16]} 8. Bc3 {[%clk 0:02:41]}  a4 {[%clk 0:02:09]} 9. Nbd2 {[%clk 0:02:40]}  Nxd4 {[%clk 0:02:03]} 10. Rb1 {[%clk 0:02:34]}  Nxf3+ {[%clk 0:02:00]} 11. exf3 {[%clk 0:02:31]}  Qe6+ {[%clk 0:01:54]} 12. Be2 {[%clk 0:02:27]}  Bxc3 {[%clk 0:01:53]} 13. O-O {[%clk 0:02:27]}  Nf6 {[%clk 0:01:51]} 14. Bc4 {[%clk 0:02:27]}  Qc6 {[%clk 0:01:44]} 15. Bb5 {[%clk 0:02:22]}  Qd5 {[%clk 0:01:36]} 16. Nc4 {[%clk 0:02:16]}  Qxd1 {[%clk 0:01:32]} 17. Rfxd1 {[%clk 0:02:15]}  O-O {[%clk 0:01:31]} 18. Nb6 {[%clk 0:02:14]}  Rb8 {[%clk 0:01:28]} 19. Nxa4 {[%clk 0:02:12]}  Ba5 {[%clk 0:01:24]} 20. Nc5 {[%clk 0:02:08]}  d6 {[%clk 0:01:19]} 21. Nb3 {[%clk 0:02:06]}  Bb6 {[%clk 0:01:15]} 22. a4 {[%clk 0:02:05]}  Bd7 {[%clk 0:01:13]} 23. Bxd7 {[%clk 0:01:59]}  Nxd7 {[%clk 0:01:13]} 24. a5 {[%clk 0:01:58]}  Bc5 {[%clk 0:01:12]} 25. Nd4 {[%clk 0:01:57]}  Bxd4 {[%clk 0:01:12]} 26. Rxd4 {[%clk 0:01:57]}  Rfc8 {[%clk 0:01:11]} 27. Rdb4 {[%clk 0:01:55]}  Rxc2 {[%clk 0:01:09]} 28. Rxb7 {[%clk 0:01:54]}  Rxb7 {[%clk 0:01:09]} 29. Rxb7 {[%clk 0:01:53]}  Ne5 {[%clk 0:01:07]} 30. a6 {[%clk 0:01:52]}  Ra2 {[%clk 0:00:57]} 31. a7 {[%clk 0:01:43]}  Kf7 {[%clk 0:00:55]} 32. f4 {[%clk 0:01:41]}  Nc6 {[%clk 0:00:49]} 33. Rc7 {[%clk 0:01:40]}  Nxa7 {[%clk 0:00:48]} 34. h3 {[%clk 0:01:40]}  Nb5 {[%clk 0:00:47]} 35. Rb7 {[%clk 0:01:39]}  Nd4 {[%clk 0:00:46]} 36. Rb4 {[%clk 0:01:36]}  Ne6 {[%clk 0:00:45]} 37. Kg2 {[%clk 0:01:35]}  Nc5 {[%clk 0:00:45]} 38. Rb8 {[%clk 0:01:33]}  Ne4 {[%clk 0:00:43]} 39. g4 {[%clk 0:01:31]}  Rxf2+ {[%clk 0:00:42]} 40. Kg1 {[%clk 0:01:30]}  Rxf4 {[%clk 0:00:41]} 41. gxf5 {[%clk 0:01:28]}  gxf5 {[%clk 0:00:38]} 42. Rh8 {[%clk 0:01:28]}  Rh4 {[%clk 0:00:38]} 43. Kg2 {[%clk 0:01:28]}  Rh6 {[%clk 0:00:38]} 44. Ra8 {[%clk 0:01:26]}  d5 {[%clk 0:00:38]} 45. Kf3 {[%clk 0:01:25]}  d4 {[%clk 0:00:38]} 46. Kf4 {[%clk 0:01:22]}  Kf6 {[%clk 0:00:36]} 47. Ra6+ {[%clk 0:01:19]}  e6 {[%clk 0:00:36]} 48. Rb6 {[%clk 0:01:18]}  d3 {[%clk 0:00:35]} 49. Ke3 {[%clk 0:01:17]}  d2 {[%clk 0:00:35]} 50. Ke2 {[%clk 0:01:17]}  Rxh3 {[%clk 0:00:34]} 51. Rb8 {[%clk 0:01:13]}  Rh2+ {[%clk 0:00:34]} 52. Ke3 {[%clk 0:01:13]}  Rh3+ {[%clk 0:00:24]} 53. Ke2 {[%clk 0:01:11]}  h5 {[%clk 0:00:22]} 54. Rf8+ {[%clk 0:01:08]}  Ke5 {[%clk 0:00:20]} 55. Rd8 {[%clk 0:01:07]}  Rh2+ {[%clk 0:00:17]} 56. Kf3 {[%clk 0:01:06]}  Rh1 {[%clk 0:00:15]} 57. Ke3 {[%clk 0:01:04]}  d1=Q {[%clk 0:00:09]} 58. Rxd1 {[%clk 0:00:58]}  Rxd1 {[%clk 0:00:08]} 59. Ke2 {[%clk 0:00:59]}  Ra1 {[%clk 0:00:07]} 60. Ke3 {[%clk 0:00:59]}  f4+ {[%clk 0:00:08]} 61. Ke2 {[%clk 0:00:59]}  Ra2+ {[%clk 0:00:08]} 62. Ke1 {[%clk 0:00:57]}  f3 {[%clk 0:00:06]} 63. Kd1 {[%clk 0:00:56]}  h4 {[%clk 0:00:07]} 64. Ke1 {[%clk 0:00:56]}  h3 {[%clk 0:00:08]} 65. Kd1 {[%clk 0:00:57]}  h2 {[%clk 0:00:08]} 66. Ke1 {[%clk 0:00:58]}  h1=Q# {[%clk 0:00:08]} 0-1


[Site "https://www.chess.com"]

[Event "Titled Tuesday Blitz May 03 Late 2022"]
[White "Erdogdu, Mert"]
[Black "Meduri, Aakaash"]
[WhiteFideId "6301495"]
[BlackFideId "2032252"]
[WhiteElo "2485"]
[BlackElo "2096"]
[Result "1-0"]
[Round "09"]
[TimeControl "180+1"]
[Date "2022.05.03"]
[WhiteClock "0:00:46"]
[BlackClock "0:00:02"]

1. e4 {[%clk 0:03:00]}  g6 {[%clk 0:02:57]} 2. d4 {[%clk 0:03:00]}  Bg7 {[%clk 0:02:52]} 3. Nc3 {[%clk 0:03:01]}  c5 {[%clk 0:02:53]} 4. d5 {[%clk 0:02:59]}  a6 {[%clk 0:02:52]} 5. a4 {[%clk 0:02:59]}  d6 {[%clk 0:02:52]} 6. h3 {[%clk 0:02:54]}  h5 {[%clk 0:02:50]} 7. Nf3 {[%clk 0:02:54]}  Nd7 {[%clk 0:02:48]} 8. Be2 {[%clk 0:02:53]}  Ngf6 {[%clk 0:02:48]} 9. O-O {[%clk 0:02:53]}  O-O {[%clk 0:02:48]} 10. Bf4 {[%clk 0:02:43]}  Nh7 {[%clk 0:02:38]} 11. Re1 {[%clk 0:02:39]}  Qa5 {[%clk 0:02:32]} 12. Ra3 {[%clk 0:02:20]}  Qc7 {[%clk 0:02:17]} 13. Qd2 {[%clk 0:02:07]}  b6 {[%clk 0:02:15]} 14. Bh6 {[%clk 0:02:05]}  Bb7 {[%clk 0:02:09]} 15. Bf1 {[%clk 0:01:58]}  Rad8 {[%clk 0:01:59]} 16. Nd1 {[%clk 0:01:53]}  e6 {[%clk 0:01:49]} 17. c4 {[%clk 0:01:52]}  e5 {[%clk 0:01:07]} 18. Bxg7 {[%clk 0:01:37]}  Kxg7 {[%clk 0:01:07]} 19. g4 {[%clk 0:01:37]}  hxg4 {[%clk 0:01:05]} 20. hxg4 {[%clk 0:01:38]}  Bc8 {[%clk 0:01:05]} 21. Nh2 {[%clk 0:01:28]}  Ndf6 {[%clk 0:00:59]} 22. Rh3 {[%clk 0:01:21]}  g5 {[%clk 0:00:43]} 23. f3 {[%clk 0:01:20]}  Rh8 {[%clk 0:00:28]} 24. Ne3 {[%clk 0:01:20]}  Rdg8 {[%clk 0:00:23]} 25. Bg2 {[%clk 0:01:17]}  Nf8 {[%clk 0:00:17]} 26. Rxh8 {[%clk 0:01:16]}  Rxh8 {[%clk 0:00:17]} 27. Nhf1 {[%clk 0:01:17]}  Ng6 {[%clk 0:00:15]} 28. Ng3 {[%clk 0:01:14]}  Nf4 {[%clk 0:00:15]} 29. Nef5+ {[%clk 0:01:13]}  Kg6 {[%clk 0:00:14]} 30. Rf1 {[%clk 0:00:55]}  Bd7 {[%clk 0:00:11]} 31. Rf2 {[%clk 0:00:55]}  b5 {[%clk 0:00:11]} 32. axb5 {[%clk 0:00:53]}  axb5 {[%clk 0:00:12]} 33. b3 {[%clk 0:00:48]}  bxc4 {[%clk 0:00:08]} 34. bxc4 {[%clk 0:00:49]}  Rb8 {[%clk 0:00:06]} 35. Bf1 {[%clk 0:00:48]}  Rb1 {[%clk 0:00:05]} 36. Rh2 {[%clk 0:00:48]}  Ng8 {[%clk 0:00:04]} 37. Rh8 {[%clk 0:00:47]}  Qb8 {[%clk 0:00:03]} 38. Qh2 {[%clk 0:00:46]}  Rxf1+ {[%clk 0:00:02]} 39. Nxf1 {[%clk 0:00:46]} 1-0


[Site "https://www.chess.com"]